fUSD/lending_fUSD_20241202
["ID","MTS","AMOUNT","RATE_DAILY","PERIOD"]
[343946205,1733118643199,-12364.1994,8e-05,2]
[343946207,1733118643210,-79637.28272627,8e-05,2]
[343946227,1733118645846,-3457.95455001,8e-05,2]
[343946228,1733118645999,-3687.34391188,8e-05,2]
[343946229,1733118646011,-4829.97971284,8e-05,2]
[343946230,1733118646027,-6302.48504983,8e-05,2]
[343946231,1733118646039,-2479.98461,8e-05,2]
[343946232,1733118646055,-4899.34192,8e-05,2]
[343946233,1733118646184,-28689.35849997,8e-05,2]
[343946234,1733118646197,-3342.838,8e-05,2]
[343946235,1733118673889,-471.65381147,7.673e-05,2]
[343946236,1733118684469,-150.0,7.6e-05,2]
[343946237,1733118686159,-250.0,7.6e-05,2]
[343946238,1733118686752,-363.32,7.6e-05,2]
[343946239,1733118802891,-341.37618853,7.539e-05,2]
[343946240,1733118902662,157.0,7.539e-05,30]
[343946242,1733119202677,157.0,7.539e-05,30]
[343946243,1733119502636,157.57814251,7.539e-05,30]
[343946373,1733119832099,-493.15,7.365e-05,2]
[343946374,1733119832110,-6.89139326,7.479e-05,2]
[343946375,1733119832122,-493.10860674,7.479e-05,2]
[343946376,1733119832131,-456.22,7.489e-05,2]
[343946377,1733119832140,-250.0,7.503e-05,2]
[343946378,1733119832150,-300.0,7.538e-05,2]
[343946379,1733119832159,-150.0,7.539e-05,2]
[343946380,1733119832168,-471.65381147,7.8e-05,2]
[343946381,1733119832178,-1336.51278076,7.9e-05,2]
[343946382,1733119832189,-691.01401924,7.9e-05,2]
[343946383,1733119832198,-896.88057259,7.9e-05,2]
[343946384,1733119832210,-320.91249163,7.9e-05,2]
[343946385,1733119834784,-1282.20693578,7.9e-05,2]
[343946386,1733119834794,-684.4796,7.9e-05,2]
[343946387,1733119834804,-843.0,7.92e-05,2]
[343946388,1733119834814,-200.0,7.957e-05,2]
[343946389,1733119834825,-200.0,7.958e-05,2]
[343946390,1733119834835,-200.0,7.959e-05,2]
[343946391,1733119834845,-200.0,7.96e-05,2]
[343946392,1733119834856,-200.0,7.962e-05,2]
[343946393,1733119834870,-200.0,7.962e-05,2]
[343946394,1733119834880,-200.0,7.963e-05,2]
[343946395,1733119834890,-200.0,7.963e-05,2]
[343946396,1733119834899,-200.0,7.967e-05,2]
[343946397,1733119834910,-200.0,7.97e-05,2]
[343946398,1733119834919,-1192.0,7.973e-05,2]
[343946399,1733119834928,-1016.0,7.973e-05,2]
[343946400,1733119834937,-500.15099022,7.973e-05,2]
[343946401,1733119834948,-500.0,7.973e-05,2]
[343946402,1733119834959,-503.54468615,7.973e-05,2]
[343946403,1733119834973,-179.1329125,7.973e-05,2]
[343946404,1733119834983,-502.36516474,7.973e-05,2]
[343946405,1733119834994,-200.0,7.975e-05,2]
[343946407,1733119835004,-200.0,7.976e-05,2]
[343946409,1733119835013,-150.0,7.998e-05,2]
[343946411,1733119835023,-0.47899973,7.999e-05,2]
[343946413,1733119835036,-1667.37100027,7.999e-05,2]
[343946415,1733119835045,-472.149,7.999e-05,2]
[343946417,1733119835054,-206.90714274,7.999e-05,2]
[343946418,1733119835070,-653.6742172,7.999e-05,2]
[343946419,1733119835080,-150.01,7.999e-05,2]
[343946420,1733119835090,-2931.02,7.999e-05,2]
[343946421,1733119835099,-604.79,7.999e-05,2]
[343946422,1733119835109,-223050.76456696,8e-05,2]
[343946567,1733119839887,-24994.9202,8e-05,2]
[343946569,1733119839899,-5048.175,8e-05,2]
[343946571,1733119839911,-5023.344,8e-05,2]
[343946574,1733119839923,-1153.45062312,8e-05,2]
[343946576,1733119839939,-54836.33140374,8e-05,2]
[343946578,1733119839949,-4223.0,8e-05,2]
[343946581,1733119839963,-107087.1261469,8e-05,2]
[343946583,1733119839974,-2997.05513562,8e-05,2]
[343946585,1733119839985,-573.45,8e-05,2]
[343946587,1733119839997,-919.06483271,8e-05,2]
[343946611,1733119840218,-1954.35763801,8e-05,2]
[343946614,1733119840229,-1926.02,8e-05,2]
[343946618,1733119840264,-4381.25527597,8e-05,2]
[343946658,1733119843148,-11188.37152827,8e-05,2]
[343946659,1733119843159,-56368.7136975,8e-05,2]
[343946660,1733119843170,-103926.95999997,8e-05,2]
[343946661,1733119843182,-16359.99915314,8e-05,2]
[343946662,1733119843193,-2052.5679972,8e-05,2]
[343946663,1733119843325,-10500.67800004,8e-05,2]
[343946664,1733119843337,-2978.65003057,8e-05,2]
[343946665,1733119843370,-4308.12726073,8e-05,2]
[343946666,1733119843383,-5962.09804514,8e-05,2]
[343946684,1733119846065,-3998.0,8e-05,2]
[343946685,1733119846074,-13317.42508929,8e-05,2]
[343946686,1733119846110,-478062.8667891,8e-05,2]
[343946687,1733119846125,-6180.04575,8e-05,2]
[343946688,1733119846166,-6910.88701127,8e-05,2]
[343946689,1733119846330,-514.125,8e-05,2]
[343946722,1733119914134,893.0,7e-05,6]
[343946723,1733119936872,-178.69,7.545e-05,2]
[343946724,1733119988430,-442.96381147,7.467e-05,2]
[343946725,1733119989682,-250.0,7.467e-05,2]
[343946726,1733119990584,-363.32,7.467e-05,2]
[343946727,1733120008737,-341.37618853,7.4e-05,2]
[343946728,1733120298734,1903.58,7.135e-05,2]
[343946730,1733120402997,150.0,7.135e-05,2]
[343946731,1733120403450,150.0,7.135e-05,2]
[343946732,1733120403638,150.0,7.135e-05,2]
[343946733,1733120403826,150.0,7.135e-05,2]
[343946734,1733120404048,150.0,7.135e-05,2]
[343946735,1733120404246,150.0,7.135e-05,2]
[343946736,1733120404421,27.26,7.135e-05,2]
[343946737,1733120404450,123.08556564,7.135e-05,2]
[343946738,1733120556372,150.0,7.132e-05,2]
[343946739,1733120556395,100.0,7.132e-05,2]
[343946740,1733120559678,-801.39,7.179e-05,2]
[343946741,1733120603480,500.0,7.122e-05,2]
[343946742,1733120615342,624.07,7.156e-05,2]
[343946743,1733120618452,178.69,7.156e-05,2]
[343946744,1733120782774,305.49,7.077e-05,2]
[343946745,1733120792972,5586.76,7.077e-05,2]
[343946748,1733120848172,-621.65381147,7.182e-05,2]
[343946749,1733120852360,-878.34618853,7.182e-05,2]
[343946755,1733120902807,304.0,0.000151,44]
[343946808,1733121032824,-1170.0,7.25e-05,2]
[343946810,1733121032834,-500.0,7.673e-05,2]
[343946812,1733121032844,-150.0,7.699e-05,2]
[343946814,1733121032854,-300.0,7.699e-05,2]
[343946815,1733121032864,-300.0,7.699e-05,2]
[343946816,1733121032873,-8652.19999999,7.7e-05,2]
[343946817,1733121032885,-48784.49006445,7.7e-05,2]
[343946831,1733121038444,-255409.7972655,7.7e-05,2]
[343946832,1733121038590,-7162.59469,7.7e-05,2]
[343946833,1733121038602,-3224.78685864,7.7e-05,2]
[343946834,1733121038613,-74027.9999998,7.7e-05,2]
[343946835,1733121038641,-1076.95101839,7.7e-05,2]
[343946849,1733121040398,-14819.60000007,7.7e-05,2]
[343946850,1733121040411,-440.88288311,7.7e-05,2]
[343946851,1733121040425,-413.72442538,7.7e-05,2]
[343946852,1733121040439,-5228.98289088,7.7e-05,2]
[343946853,1733121040464,-2363.07966214,7.7e-05,2]
[343946970,1733121044452,-665.34875403,7.7e-05,2]
[343946972,1733121044467,-698.71515577,7.7e-05,2]
[343946975,1733121044483,-1078.88186558,7.7e-05,2]
[343946979,1733121044520,-7458.0,7.7e-05,2]
[343946982,1733121044537,-2372.29198036,7.7e-05,2]
[343946994,1733121044647,-39.09700776,7.7e-05,2]
[343946997,1733121044663,-506.92875256,7.7e-05,2]
[343946999,1733121044678,-4450.23805415,7.7e-05,2]
[343947002,1733121044693,-5931.84129981,7.7e-05,2]
[343947005,1733121044711,-9856.92032274,7.7e-05,2]
[343947007,1733121044727,-6001.34236406,7.7e-05,2]
[343947010,1733121044742,-1795.91828097,7.7e-05,2]
[343947012,1733121044756,-7611.15790857,7.7e-05,2]
[343947015,1733121044774,-18399.23573243,7.7e-05,2]
[343947018,1733121044788,-671.692,7.7e-05,2]
[343947090,1733121046258,-1186.46400001,7.7e-05,2]
[343947092,1733121046300,-1210.96795,7.7e-05,2]
[343947093,1733121046315,-126937.1332109,7.7e-05,2]
[343947094,1733121046342,-6178.9866,7.7e-05,2]
[343947095,1733121046359,-4026.92579781,7.7e-05,2]
[343947096,1733121046599,-15743.14776936,7.7e-05,2]
[343947132,1733121105449,-500.0,7.673e-05,2]
[343947133,1733121105473,-300.0,7.699e-05,2]
[343947134,1733121105497,-324778.64468187,7.7e-05,2]
[343947135,1733121172640,150.0,7.028e-05,2]
[343947136,1733121172665,150.0,7.028e-05,2]
[343947137,1733121172690,64.97,7.028e-05,2]
[343947138,1733121224511,-1001.5308835,7.781e-05,2]
[343947139,1733121224543,-500.0,7.781e-05,2]
[343947140,1733121224578,-150.0,7.878e-05,2]
[343947141,1733121224610,-171.31673984,7.878e-05,2]
[343947142,1733121224642,-2500.0,7.9e-05,2]
[343947143,1733121224681,-1006.0,7.9e-05,2]
[343947144,1733121224713,-1000.0,7.9e-05,3]
[343947145,1733121224745,-171.31673983,7.9e-05,2]
[343947146,1733121224778,-300.0,7.906e-05,2]
[343947147,1733121224812,-364.97,7.907e-05,2]
[343947148,1733121224845,-5800.0,7.924e-05,2]
[343947149,1733121224877,-5800.0,7.932e-05,2]
[343947150,1733121224909,-5800.0,7.941e-05,2]
[343947151,1733121230560,300.0,7.841e-05,2]
[343947152,1733121248239,1000.0,7.6e-05,2]
[343947153,1733121257487,250.0,7.122e-05,2]
[343947154,1733121261783,341.38,7.122e-05,2]
[343947155,1733121293299,1081.81,7.122e-05,2]
[343947156,1733121308385,750.2033,7.899e-05,2]
[343947157,1733121309676,2500.0,7.6e-05,2]
[343947158,1733121440381,2500.0,7.9e-05,2]
[343947159,1733121504395,316.64,7.112e-05,2]
[343947160,1733121516454,1500.0,7.813e-05,2]
[343947161,1733121559310,2500.0,7.9e-05,2]
[343947162,1733121563488,4724.18,7.079e-05,2]
[343947163,1733121608565,-5800.0,7.949e-05,2]
[343947164,1733121611712,-5800.0,7.958e-05,2]
[343947165,1733121611760,-1698.3654313,7.958e-05,2]
[343947166,1733121611795,-1738.8256237,7.958e-05,2]
[343947167,1733121611824,-200.0,7.959e-05,2]
[343947168,1733121611852,-1698.3654313,7.959e-05,2]
[343947169,1733121611879,-607.85611329,7.96e-05,2]
[343947170,1733121611909,-38256.58740041,7.962e-05,2]
[343947171,1733121621380,-50000.0,7.962e-05,2]
[343947172,1733121626795,-50000.0,7.962e-05,2]
[343947173,1733121648320,-48734.16367974,7.962e-05,2]
[343947174,1733121648343,-607.85611329,7.963e-05,2]
[343947175,1733121648366,-200.0,7.963e-05,2]
[343947176,1733121648389,-457.98020697,7.966e-05,2]
[343947177,1733121662441,-5342.01979303,7.966e-05,2]
[343947178,1733121662471,-44657.98020697,7.966e-05,2]
[343947179,1733121671125,-50000.0,7.966e-05,2]
[343947180,1733121673593,2500.0,7.9e-05,2]
[343947182,1733121794970,150.0,7.118e-05,2]
[343947183,1733121794995,150.0,7.118e-05,2]
[343947184,1733121795020,94.52,7.118e-05,2]
[343947213,1733122179267,55.48,6.893e-05,2]
[343947214,1733122179290,150.0,6.893e-05,2]
[343947215,1733122179313,150.0,6.893e-05,2]
[343947216,1733122179335,163.18960701,6.893e-05,2]
[343947217,1733122179359,150.0,6.893e-05,2]
[343947218,1733122179383,236.66,6.893e-05,2]
[343947219,1733122179410,1804.99,6.893e-05,2]
[343947224,1733122180000,21189.68039299,6.893e-05,2]
[343947470,1733122195383,973.17,0.00025,120]
[343947477,1733122231574,-150.0,7.726e-05,2]
[343947478,1733122231585,-922.64,7.726e-05,2]
[343947479,1733122231596,-577.36,7.726e-05,2]
[343947480,1733122231606,-150.0,7.727e-05,2]
[343947481,1733122231615,-150.0,7.731e-05,2]
[343947482,1733122231625,-150.0,7.74e-05,2]
[343947483,1733122231635,-36.64,7.741e-05,2]
[343947484,1733122232009,-113.36,7.741e-05,2]
[343947485,1733122232019,-150.0,7.75e-05,2]
[343947486,1733122232029,-150.0,7.751e-05,2]
[343947487,1733122232039,-150.0,7.752e-05,2]
[343947488,1733122232051,-150.0,7.752e-05,2]
[343947489,1733122232061,-1500.0,7.759e-05,2]
[343947490,1733122232071,-150.0,7.764e-05,2]
[343947491,1733122232081,-50.9473268,7.766e-05,2]
[343947492,1733122232120,-99.0526732,7.766e-05,2]
[343947493,1733122232130,-150.0,7.771e-05,2]
[343947494,1733122232139,-150.0,7.771e-05,2]
[343947495,1733122232150,-150.0,7.774e-05,2]
[343947496,1733122232159,-150.0,7.774e-05,2]
[343947499,1733122232595,-150.0,7.776e-05,2]
[343947500,1733122232624,-150.0,7.78e-05,2]
[343947501,1733122232634,-150.0,7.781e-05,2]
[343947502,1733122232644,-150.0,7.783e-05,2]
[343947503,1733122232655,-150.0,7.783e-05,2]
[343947504,1733122232665,-150.0,7.785e-05,2]
[343947505,1733122232675,-150.0,7.791e-05,2]
[343947506,1733122232684,-150.0,7.794e-05,2]
[343947507,1733122232694,-150.0,7.795e-05,2]
[343947508,1733122232703,-150.0,7.798e-05,2]
[343947509,1733122232713,-150.0,7.798e-05,2]
[343947510,1733122232723,-150.0,7.799e-05,2]
[343947511,1733122232735,-150.0,7.799e-05,2]
[343947512,1733122232744,-150.0,7.799e-05,2]
[343947513,1733122232753,-150.0,7.801e-05,2]
[343947514,1733122232762,-150.0,7.807e-05,2]
[343947515,1733122232773,-150.0,7.811e-05,2]
[343947516,1733122232782,-150.0,7.811e-05,2]
[343947517,1733122232793,-150.0,7.813e-05,2]
[343947518,1733122232803,-150.0,7.817e-05,2]
[343947519,1733122232813,-150.0,7.818e-05,2]
[343947520,1733122232823,-150.0,7.821e-05,2]
[343947521,1733122232832,-150.0,7.822e-05,2]
[343947522,1733122232842,-150.0,7.822e-05,2]
[343947523,1733122232852,-150.0,7.823e-05,2]
[343947524,1733122232861,-150.0,7.824e-05,2]
[343947525,1733122232871,-150.0,7.827e-05,2]
[343947526,1733122232881,-150.0,7.828e-05,2]
[343947527,1733122232890,-150.0,7.828e-05,2]
[343947528,1733122232900,-150.0,7.832e-05,2]
[343947529,1733122232910,-150.0,7.832e-05,2]
[343947530,1733122232919,-150.0,7.834e-05,2]
[343947531,1733122232929,-1500.0,7.838e-05,2]
[343947532,1733122232939,-150.0,7.84e-05,2]
[343947533,1733122232949,-150.0,7.84e-05,2]
[343947534,1733122232959,-300.0,7.841e-05,2]
[343947535,1733122232969,-150.0,7.844e-05,2]
[343947536,1733122232979,-150.0,7.844e-05,2]
[343947537,1733122232988,-150.0,7.844e-05,2]
[343947538,1733122232998,-150.0,7.847e-05,2]
[343947539,1733122233009,-150.0,7.848e-05,2]
[343947540,1733122233019,-150.0,7.851e-05,2]
[343947541,1733122233029,-150.0,7.851e-05,2]
[343947542,1733122233039,-150.0,7.853e-05,2]
[343947543,1733122233050,-150.0,7.855e-05,2]
[343947544,1733122233059,-150.0,7.855e-05,2]
[343947545,1733122233069,-150.0,7.861e-05,2]
[343947546,1733122233079,-150.0,7.865e-05,2]
[343947547,1733122233089,-150.0,7.865e-05,2]
[343947548,1733122233099,-150.0,7.869e-05,2]
[343947549,1733122233110,-150.0,7.87e-05,2]
[343947550,1733122233121,-150.0,7.873e-05,2]
[343947551,1733122233133,-150.0,7.879e-05,2]
[343947552,1733122233143,-150.0,7.883e-05,2]
[343947553,1733122233153,-150.0,7.893e-05,2]
[343947554,1733122233165,-150.0,7.895e-05,2]
[343947555,1733122233176,-2500.0,7.9e-05,2]
[343947556,1733122233187,-150.0,7.9e-05,2]
[343947557,1733122233198,-150.0,7.9e-05,2]
[343947558,1733122233209,-150.0,7.902e-05,2]
[343947559,1733122233219,-1500.0,7.908e-05,2]
[343947560,1733122233230,-150.0,7.91e-05,2]
[343947561,1733122233240,-150.0,7.91e-05,2]
[343947562,1733122233251,-150.0,7.91e-05,2]
[343947563,1733122233262,-150.0,7.911e-05,2]
[343947564,1733122233273,-150.0,7.911e-05,2]
[343947565,1733122233284,-150.0,7.912e-05,2]
[343947566,1733122233296,-150.0,7.916e-05,2]
[343947567,1733122233307,-150.0,7.918e-05,2]
[343947568,1733122233318,-150.0,7.918e-05,2]
[343947569,1733122233329,-500.0,7.922e-05,2]
[343947570,1733122233339,-150.0,7.925e-05,2]
[343947571,1733122233350,-150.0,7.928e-05,2]
[343947572,1733122233361,-150.0,7.932e-05,2]
[343947573,1733122233373,-150.0,7.932e-05,2]
[343947574,1733122233384,-150.0,7.934e-05,2]
[343947575,1733122233394,-150.0,7.941e-05,2]
[343947576,1733122233405,-150.0,7.95e-05,2]
[343947577,1733122233417,-150.0,7.952e-05,2]
[343947578,1733122233427,-150.0,7.957e-05,2]
[343947579,1733122233438,-150.0,7.96e-05,2]
[343947580,1733122233448,-150.0,7.962e-05,2]
[343947581,1733122233458,-150.0,7.964e-05,2]
[343947582,1733122233469,-92332.77087318,7.966e-05,2]
[343947583,1733122233479,-200.0,7.967e-05,2]
[343947584,1733122233489,-1698.3654313,7.967e-05,2]
[343947585,1733122233500,-150.0,7.967e-05,2]
[343947586,1733122233511,-186990.75108015,7.968e-05,2]
[343947587,1733122233521,-1698.3654313,7.968e-05,2]
[343947588,1733122233532,-1500.0,7.968e-05,2]
[343947589,1733122233544,-36853.43096383,7.969e-05,2]
[343947590,1733122235413,-3715.00000001,7.969e-05,2]
[343947593,1733122237577,-150.0,7.82e-05,2]
[343947594,1733122237587,-150.0,7.907e-05,2]
[343947595,1733122237596,-7136.6,7.969e-05,2]
[343947596,1733122237729,-716.19999999,7.969e-05,2]
[343947597,1733122237865,-20446.2,7.969e-05,2]
[343947598,1733122237881,-118123.32011632,7.969e-05,2]
[343947599,1733122237892,-1738.8256237,7.969e-05,2]
[343947600,1733122237902,-607.85611329,7.969e-05,2]
[343947601,1733122237912,-150.0,7.97e-05,2]
[343947602,1733122237921,-607.85611329,7.971e-05,2]
[343947603,1733122237931,-607.85611329,7.971e-05,2]
[343947604,1733122237940,-150.0,7.971e-05,2]
[343947605,1733122237950,-1738.8256237,7.971e-05,2]
[343947606,1733122237959,-3455.96889243,7.972e-05,2]
[343947607,1733122237970,-140222.44260839,7.972e-05,2]
[343947613,1733122239684,-1799.87157813,7.972e-05,2]
[343947614,1733122239696,-3638.9238034,7.972e-05,2]
[343947615,1733122239745,-2760.40999116,7.972e-05,2]
[343947616,1733122239756,-684.16286127,7.972e-05,2]
[343947618,1733122242602,-283.3989996,7.92e-05,2]
[343947620,1733122242690,-216.6010004,7.92e-05,2]
[343947621,1733122242700,-1966.95030694,7.972e-05,2]
[343947622,1733122242915,-22187.67856122,7.972e-05,2]
[343947634,1733122247325,-922.06544998,7.972e-05,2]
[343947635,1733122247337,-9352.27702723,7.972e-05,2]
[343947636,1733122247348,-152.51451288,7.973e-05,2]
[343947637,1733122247358,-172.48658176,7.973e-05,2]
[343947638,1733122247367,-509.6778832,7.973e-05,2]
[343947639,1733122247378,-502.8201397,7.973e-05,2]
[343947640,1733122247388,-500.0,7.973e-05,2]
[343947641,1733122247397,-500.0,7.973e-05,2]
[343947642,1733122247407,-500.0,7.973e-05,2]
[343947643,1733122247417,-1692.113,7.973e-05,2]
[343947644,1733122247427,-150.0,7.973e-05,2]
[343947645,1733122247436,-200.0,7.973e-05,2]
[343947646,1733122247446,-5800.0,7.975e-05,2]
[343947647,1733122247456,-150.0,7.975e-05,2]
[343947648,1733122247466,-1698.3654313,7.975e-05,2]
[343947649,1733122247475,-1738.8256237,7.976e-05,2]
[343947650,1733122247485,-607.85611329,7.976e-05,2]
[343947651,1733122247495,-1698.3654313,7.978e-05,2]
[343947652,1733122247505,-30154.34454414,7.979e-05,2]
[343947653,1733122247518,-1510.10308254,7.979e-05,2]
[343947654,1733122247538,-1071.59395955,7.979e-05,2]
[343947655,1733122247550,-2801.07059239,7.979e-05,2]
[343947656,1733122247571,-292.29160126,7.979e-05,2]
[343947657,1733122247583,-1163.4,7.979e-05,2]
[343947658,1733122247606,-1513.9552305,7.979e-05,2]
[343947660,1733122334330,7968.0,0.00025,120]
[343947661,1733122415177,887.66,7.136e-05,2]
[343947662,1733122474964,-2500.0,7.9e-05,2]
[343947663,1733122474989,-1949.85662592,7.92e-05,2]
[343947664,1733122475013,-500.0,7.973e-05,2]
[343947665,1733122475036,-500.0,7.973e-05,2]
[343947666,1733122475060,-150.0,7.974e-05,2]
[343947667,1733122475083,-44400.14337408,7.979e-05,2]
[343947668,1733122476474,-50000.0,7.979e-05,2]
[343947670,1733122487164,4644.94709196,0.00025,120]
[343947671,1733122566379,250.0,7.072e-05,2]
[343947672,1733122607706,300.0,7.089e-05,2]
[343947673,1733122883174,484.43,7.039e-05,2]
[343947674,1733122981069,-150.0,7.727e-05,2]
[343947675,1733122981097,-150.0,7.727e-05,2]
[343947676,1733122981127,-150.0,7.731e-05,2]
[343947677,1733122981154,-150.0,7.75e-05,2]
[343947678,1733122981180,-150.0,7.753e-05,2]
[343947679,1733122981207,-150.0,7.757e-05,2]
[343947680,1733122981235,-150.0,7.762e-05,2]
[343947681,1733122981264,-150.0,7.77e-05,2]
[343947682,1733122981291,-150.0,7.776e-05,2]
[343947683,1733122981318,-150.0,7.785e-05,2]
[343947684,1733122981346,-150.0,7.787e-05,2]
[343947685,1733122981374,-1544.54689204,7.804e-05,2]
[343947686,1733122981402,-150.0,7.808e-05,2]
[343947687,1733122981429,-150.0,7.813e-05,2]
[343947688,1733122981455,-150.0,7.814e-05,2]
[343947689,1733122981482,-150.0,7.814e-05,2]
[343947690,1733122981509,-150.0,7.831e-05,2]
[343947691,1733122981537,-150.0,7.841e-05,2]
[343947692,1733122981567,-150.0,7.871e-05,2]
[343947693,1733122981595,-150.0,7.875e-05,2]
[343947694,1733122981625,-150.0,7.881e-05,2]
[343947695,1733122981651,-150.0,7.897e-05,2]
[343947696,1733122981679,-2500.0,7.9e-05,2]
[343947697,1733122981707,-150.0,7.901e-05,2]
[343947698,1733122981734,-535.0,7.902e-05,2]
[343947699,1733122981764,-150.0,7.904e-05,2]
[343947700,1733122981793,-150.0,7.909e-05,2]
[343947701,1733122981821,-150.0,7.92e-05,2]
[343947702,1733122981849,-150.0,7.92e-05,2]
[343947703,1733122981880,-150.0,7.929e-05,2]
[343947704,1733122981911,-150.0,7.931e-05,2]
[343947705,1733122981941,-150.0,7.938e-05,2]
[343947706,1733122981971,-150.0,7.942e-05,2]
[343947707,1733122982000,-150.0,7.952e-05,2]
[343947708,1733122982028,-150.0,7.966e-05,2]
[343947709,1733122982055,-200.0,7.967e-05,2]
[343947710,1733122982083,-200.0,7.967e-05,2]
[343947711,1733122982113,-150.0,7.967e-05,2]
[343947712,1733122982142,-486.22,7.973e-05,14]
[343947713,1733122982170,-500.0,7.973e-05,2]
[343947714,1733122982199,-150.0,7.974e-05,2]
[343947715,1733122982225,-5800.0,7.975e-05,2]
[343947716,1733122982256,-150.0,7.975e-05,2]
[343947717,1733122982283,-54083.84869569,7.979e-05,2]
[343947718,1733122982311,-1738.8256237,7.979e-05,2]
[343947719,1733122982339,-1738.8256237,7.98e-05,2]
[343947720,1733122982369,-150.0,7.983e-05,2]
[343947721,1733122982395,-5800.0,7.983e-05,2]
[343947722,1733122982422,-4472.73316487,7.983e-05,2]
[343947723,1733123096029,432.63,7.098e-05,2]
[343947724,1733123391186,450.0,7.069e-05,2]
[343947725,1733123393747,1607.74,7.069e-05,2]
[343947729,1733123431757,-612.68947494,7.9e-05,2]
[343947730,1733123431910,-1887.31052506,7.9e-05,2]
[343947731,1733123431920,-1245.0,7.973e-05,2]
[343947732,1733123431929,-938.0,7.973e-05,2]
[343947733,1733123431939,-160.95675924,7.973e-05,2]
[343947734,1733123431949,-500.0,7.973e-05,2]
[343947735,1733123431961,-1327.26683513,7.983e-05,2]
[343947736,1733123431972,-5800.0,7.983e-05,2]
[343947737,1733123431983,-150.0,7.984e-05,2]
[343947738,1733123431993,-150.0,7.984e-05,2]
[343947739,1733123432004,-150.0,7.985e-05,2]
[343947740,1733123432013,-432.63,7.985e-05,2]
[343947741,1733123432023,-10370.41601386,7.988e-05,2]
[343947742,1733123432032,-797.473711,7.99e-05,2]
[343947743,1733123432042,-994.4695002,7.99e-05,2]
[343947744,1733123432051,-1120.1709584,7.99e-05,2]
[343947745,1733123432061,-1000.0,7.99e-05,2]
[343947746,1733123432070,-1353.691,7.991e-05,2]
[343947747,1733123432080,-8500.0,7.991e-05,2]
[343947748,1733123432093,-5800.0,7.992e-05,2]
[343947749,1733123432103,-5800.0,7.992e-05,2]
[343947750,1733123432113,-420.87897762,7.992e-05,2]
[343947751,1733123432142,-5379.12102238,7.992e-05,2]
[343947752,1733123432162,-682.519972,7.995e-05,2]
[343947753,1733123432183,-567.566233,7.995e-05,2]
[343947754,1733123432204,-851.1193361,7.995e-05,2]
[343947755,1733123432224,-707.769172,7.995e-05,2]
[343947756,1733123432245,-958.7012595,7.995e-05,2]
[343947757,1733123432267,-797.2315607,7.995e-05,2]
[343947759,1733123432288,-5962.0,7.996e-05,2]
[343947761,1733123432309,-150.0,7.996e-05,2]
[343947763,1733123432331,-1171.391,7.996e-05,2]
[343947765,1733123432344,-1673.119,7.996e-05,2]
[343947767,1733123432353,-1261.0,7.998e-05,2]
[343947769,1733123432362,-566.0,7.998e-05,2]
[343947772,1733123432372,-211.535,7.998e-05,2]
[343947775,1733123432381,-630.0,7.998e-05,2]
[343947776,1733123432391,-2001.0,7.998e-05,2]
[343947779,1733123432400,-195.362,7.998e-05,2]
[343947782,1733123432410,-1933.0,7.998e-05,2]
[343947784,1733123432419,-563.0,7.998e-05,2]
[343947786,1733123432429,-3772.679,7.998e-05,2]
[343947788,1733123432439,-816.0,7.998e-05,2]
[343947790,1733123432449,-1281.078,7.998e-05,2]
[343947792,1733123432462,-3527.0,7.998e-05,2]
[343947794,1733123432471,-1057.957,7.998e-05,2]
[343947796,1733123432481,-150.0,7.998e-05,2]
[343947798,1733123432491,-150.0,7.998e-05,2]
[343947800,1733123432501,-150.0,7.998e-05,2]
[343947802,1733123432510,-150.0,7.998e-05,2]
[343947804,1733123432520,-150.0,7.998e-05,2]
[343947806,1733123432530,-150.0,7.998e-05,2]
[343947808,1733123432540,-150.0,7.998e-05,2]
[343947810,1733123432550,-150.0,7.998e-05,2]
[343947812,1733123432561,-150.0,7.998e-05,2]
[343947814,1733123432571,-150.0,7.998e-05,2]
[343947816,1733123432581,-150.0,7.998e-05,2]
[343947818,1733123432592,-150.0,7.998e-05,2]
[343947820,1733123432603,-150.0,7.998e-05,2]
[343947822,1733123432613,-150.0,7.998e-05,2]